fUSD/lending_fUSD_20240528
["ID","MTS","AMOUNT","RATE_DAILY","PERIOD"]
[328112946,1716874233680,-168.55150027,0.00033353,7]
[328112947,1716874233690,-168.55150027,0.00033353,7]
[328112948,1716874233700,-168.55150027,0.00033353,7]
[328112949,1716874233710,-168.55150027,0.00033353,7]
[328112950,1716874233719,-168.55150027,0.00033353,7]
[328112951,1716874233729,-168.55150027,0.00033353,7]
[328112952,1716874233739,-168.55150027,0.00033353,7]
[328112953,1716874233749,-158.20119577,0.00033353,7]
[328112954,1716874233758,-158.20119577,0.00033353,7]
[328112955,1716874233767,-158.20119577,0.00033353,7]
[328112956,1716874233778,-158.20119577,0.00033353,7]
[328112957,1716874233787,-158.7,0.00033353,7]
[328112958,1716874233797,-158.27619577,0.00033353,7]
[328112959,1716874233807,-158.27619577,0.00033353,7]
[328112960,1716874233817,-158.27619577,0.00033353,7]
[328112961,1716874233827,-158.27619577,0.00033353,7]
[328112962,1716874233836,-158.27619577,0.00033353,7]
[328112963,1716874233846,-158.27619577,0.00033353,7]
[328112964,1716874233856,-158.27619577,0.00033353,7]
[328112965,1716874233865,-158.27619577,0.00033353,7]
[328112966,1716874233876,-158.27619577,0.00033353,7]
[328112967,1716874233887,-158.27619577,0.00033353,7]
[328112968,1716874233897,-158.27619577,0.00033353,7]
[328112969,1716874233906,-158.27619577,0.00033353,7]
[328112970,1716874233916,-158.27619577,0.00033353,7]
[328112971,1716874233926,-158.27619577,0.00033353,7]
[328112972,1716874233936,-184.33,0.00033353,7]
[328112973,1716874233946,-184.21443013,0.00033353,7]
[328112974,1716874233956,-184.21443013,0.00033353,7]
[328112975,1716874233966,-212.70456731,0.00033353,7]
[328112976,1716874233976,-213.2,0.00033353,7]
[328112977,1716874233986,-154.83059441,0.00033353,7]
[328112978,1716874233996,-154.83059441,0.00033353,7]
[328112979,1716874234005,-154.83059441,0.00033353,7]
[328112980,1716874234015,-154.83059441,0.00033353,7]
[328112981,1716874234025,-154.83059441,0.00033353,7]
[328112982,1716874234035,-154.83059441,0.00033353,7]
[328112983,1716874234044,-154.83059441,0.00033353,7]
[328112984,1716874234054,-250.73972606,0.00033353,5]
[328112985,1716874234064,-250.73972606,0.00033353,5]
[328112986,1716874234074,-250.73972606,0.00033353,5]
[328112987,1716874234085,-250.73972606,0.00033353,5]
[328112988,1716874234095,-1832.07670074,0.00033353,10]
[328112989,1716874234104,-250.73972606,0.00033353,5]
[328112990,1716874234115,-251.5721885,0.00033353,2]
[328112991,1716874234124,-161.44325774,0.00033353,2]
[328112992,1716874234136,-338.35082161,0.00033353,2]
[328112993,1716874234146,-763.70891426,0.00033353,6]
[328112994,1716874234156,-818.0,0.0003337,3]
[328112995,1716874234166,-500.0,0.00033389,6]
[328112996,1716874234176,-448.93,0.00033389,6]
[328112997,1716874234186,-500.0,0.00033389,6]
[328112998,1716874234195,-406.0447685,0.00033389,7]
[328112999,1716874234204,-500.0,0.00033389,7]
[328113000,1716874234214,-177.29675785,0.00033389,7]
[328113001,1716874234224,-191727.70732096,0.0003339,2]
[328113002,1716874234237,-285.79887621,0.0003339,2]
[328113003,1716874234249,-999.96,0.0003339,2]
[328113004,1716874234261,-418.90217464,0.0003339,2]
[328113005,1716874234273,-781.95019923,0.0003339,2]
[328113006,1716874234285,-2130.44985288,0.0003339,2]
[328113007,1716874234297,-827.13712285,0.0003339,2]
[328113008,1716874234309,-896.99068152,0.0003339,2]
[328113009,1716874234321,-6370.88873846,0.0003339,2]
[328113010,1716874234340,-544.0998858,0.0003339,2]
[328113011,1716874234352,-667.36237526,0.0003339,2]
[328113012,1716874234364,-735.8,0.0003339,2]
[328113013,1716874234376,-1593.56588308,0.0003339,2]
[328113014,1716874234390,-2000.0,0.000334,10]
[328113015,1716874234400,-150.0,0.000334,7]
[328113016,1716874234410,-155.0,0.00033411,4]
[328113017,1716874234420,-167.052814,0.00033418,42]
[328113018,1716874234430,-6298.51255397,0.00033427,2]
[328113019,1716874234440,-157.052814,0.00033428,44]
[328113020,1716874234451,-1976.0227421,0.0003343,2]
[328113021,1716874234461,-1976.0227421,0.0003343,2]
[328113022,1716874234471,-1976.0227421,0.0003343,2]
[328113023,1716874234480,-1976.0227421,0.0003343,2]
[328113024,1716874234490,-1976.0227421,0.0003343,2]
[328113025,1716874234500,-41311.1933566,0.0003343,2]
[328113026,1716874234510,-31402.6006403,0.0003343,2]
[328113027,1716874234523,-21494.007924,0.0003343,2]
[328113028,1716874234532,-11585.4152077,0.0003343,2]
[328113029,1716874234541,-1676.8224914,0.0003343,2]
[328113030,1716874234550,-6369.3128027,0.0003343,2]
[328113031,1716874234561,-4841.6172481,0.0003343,2]
[328113032,1716874234571,-3313.9216936,0.0003343,2]
[328113033,1716874234580,-1786.226139,0.0003343,2]
[328113034,1716874234590,-258.5305844,0.0003343,2]
[328113035,1716874234602,-150.75,0.00033431,2]
[328113036,1716874234612,-157.052814,0.00033438,42]
[328113037,1716874234622,-500.0,0.00033439,6]
[328113038,1716874234636,-1182.48935302,0.0003344,4]
[328113039,1716874234646,-20903.55561709,0.0003344,4]
[328113040,1716874234655,-361.0443987,0.0003344,4]
[328113041,1716874234665,-17065.9818276,0.0003344,5]
[328113042,1716874234676,-166.86126885,0.00033441,4]
[328113043,1716874234686,-242.58865285,0.00033441,2]
[328113044,1716874234696,-12698.11165009,0.00033441,4]
[328113045,1716874234708,-39354.97510503,0.00033441,4]
[328113046,1716874234718,-932.08499,0.00033442,2]
[328113047,1716874234728,-150.75,0.00033442,2]
[328113048,1716874234738,-150.75,0.00033442,2]
[328113049,1716874234747,-150.75,0.00033442,2]
[328113050,1716874234757,-150.75,0.00033443,2]
[328113051,1716874234767,-150.75,0.00033443,2]
[328113052,1716874234777,-150.75,0.00033443,2]
[328113053,1716874234787,-150.75,0.00033443,2]
[328113054,1716874234797,-150.75,0.00033443,2]
[328113055,1716874234806,-150.75,0.00033443,2]
[328113056,1716874234816,-150.75,0.00033443,2]
[328113057,1716874234826,-150.75,0.00033443,2]
[328113058,1716874234835,-150.75,0.00033443,2]
[328113059,1716874234845,-150.75,0.00033443,2]
[328113060,1716874234855,-150.75,0.00033443,2]
[328113061,1716874234864,-150.75,0.00033443,2]
[328113062,1716874234873,-150.75,0.00033443,2]
[328113063,1716874234885,-150.75,0.00033443,2]
[328113064,1716874234895,-150.75,0.00033443,2]
[328113065,1716874234904,-150.75,0.00033443,2]
[328113066,1716874234914,-150.75,0.00033443,2]
[328113067,1716874234923,-150.75,0.00033443,2]
[328113068,1716874234932,-150.75,0.00033443,2]
[328113069,1716874234942,-150.75,0.00033443,2]
[328113070,1716874234952,-150.75,0.00033443,2]
[328113071,1716874234962,-150.75,0.00033443,2]
[328113072,1716874234971,-150.75,0.00033443,2]
[328113073,1716874234981,-150.75,0.00033443,2]
[328113074,1716874234991,-150.75,0.00033443,2]
[328113075,1716874235001,-150.75,0.00033443,2]
[328113076,1716874235011,-150.75,0.00033443,2]
[328113077,1716874235021,-150.75,0.00033443,2]
[328113078,1716874235030,-150.75,0.00033443,2]
[328113079,1716874235040,-150.75,0.00033443,2]
[328113080,1716874235049,-150.75,0.00033443,2]
[328113081,1716874235058,-150.75,0.00033443,2]
[328113082,1716874235067,-150.75,0.00033443,2]
[328113083,1716874235078,-150.75,0.00033443,2]
[328113084,1716874235088,-150.75,0.00033443,2]
[328113085,1716874235098,-150.75,0.00033443,2]
[328113086,1716874235107,-150.75,0.00033443,2]
[328113087,1716874235116,-150.75,0.00033443,2]
[328113088,1716874235126,-150.75,0.00033443,2]
[328113089,1716874235137,-150.75,0.00033443,2]
[328113090,1716874235147,-150.75,0.00033443,2]
[328113091,1716874235156,-150.75,0.00033443,2]
[328113092,1716874235168,-150.75,0.00033443,2]
[328113093,1716874235180,-150.75,0.00033443,2]
[328113094,1716874235192,-1247.02141285,0.00033443,4]
[328113095,1716874235204,-500.0,0.00033444,6]
[328113096,1716874235215,-500.0,0.00033448,6]
[328113097,1716874235227,-500.0,0.00033448,6]
[328113098,1716874235238,-1976.0227421,0.00033449,2]
[328113099,1716874235249,-51219.7860729,0.00033449,2]
[328113100,1716874235260,-7897.0083573,0.00033449,2]
[328113101,1716874235271,-644.15206775,0.00033451,4]
[328113102,1716874235281,-688.04779437,0.00033451,4]
[328113103,1716874235291,-86752.33360235,0.00033452,10]
[328113104,1716874235304,-20366.49338363,0.00033452,10]
[328113105,1716874235316,-329.88015091,0.00033452,10]
[328113106,1716874235335,-3590.57608,0.00033452,10]
[328113107,1716874235347,-626.71201654,0.00033452,10]
[328113108,1716874235360,-346.48303694,0.00033452,10]
[328113112,1716874238297,-439.45564214,0.00030581,2]
[328113113,1716874238311,-160.54435786,0.00030581,2]
[328113114,1716874238322,-1036.9163323,0.00032783,5]
[328113115,1716874238332,-11632.09786471,0.00033068,2]
[328113116,1716874238343,-512.93,0.00033442,10]
[328113117,1716874238355,-11195.46716759,0.00033452,11]
[328113118,1716874238366,-13538.39248679,0.00033452,10]
[328113119,1716874238380,-351.13088306,0.00033452,10]
[328113120,1716874238395,-835.11710452,0.00033452,10]
[328113121,1716874238409,-6628.30439943,0.00033452,10]
[328113122,1716874239543,-801.35808156,0.00033452,10]
[328113123,1716874239688,-946.67592046,0.00033452,10]
[328113124,1716874239701,-33353.52657621,0.00033452,10]
[328113126,1716874239835,-96466.49561193,0.00033452,10]
[328113168,1716874241002,-530.86535505,0.00033452,10]
[328113169,1716874241627,-412.5831558,0.00033452,10]
[328113170,1716874241756,-363.6,0.00033452,10]
[328113171,1716874241769,-2894.41961545,0.00033452,10]
[328113172,1716874241782,-53126.63443164,0.00033452,10]
[328113173,1716874241884,-1697.04097606,0.00033452,10]
[328113176,1716874244347,-4411.225,0.00033242,2]
[328113178,1716874244496,-1699.6926,0.00033242,2]
[328113180,1716874244510,-836.60016149,0.00033242,2]
[328113181,1716874244527,-552.48223851,0.00033242,2]
[328113182,1716874244539,-7262.54619837,0.00033452,10]
[328113183,1716874244555,-26630.79619586,0.00033452,10]
[328113184,1716874244567,-500.0,0.00033452,7]
[328113185,1716874244580,-500.0,0.00033452,6]
[328113186,1716874244592,-500.0,0.00033452,6]
[328113187,1716874244604,-125.54380437,0.00033452,6]
[328113188,1716874244669,-374.45619563,0.00033452,6]
[328113189,1716874244680,-3.48380099,0.00033452,6]
[328113190,1716874244694,-496.51619901,0.00033452,6]
[328113191,1716874244706,-285.72947895,0.00033452,6]
[328113192,1716874244716,-500.0,0.00033452,6]
[328113193,1716874244727,-500.0,0.00033452,6]
[328113194,1716874244737,-500.0,0.00033452,6]
[328113195,1716874244747,-500.0,0.00033452,6]
[328113196,1716874244757,-500.0,0.00033452,6]
[328113197,1716874244767,-500.0,0.00033452,6]
[328113198,1716874244778,-500.0,0.00033452,6]
[328113199,1716874244789,-155.55773076,0.00033452,7]
[328113200,1716874244800,-863.58423291,0.00033452,5]
[328113201,1716874244811,-421.0,0.00033453,5]
[328113202,1716874244822,-201.64696621,0.00033453,2]
[328113203,1716874244833,-8196.31575506,0.00033453,2]
[328113204,1716874244845,-12483.19727488,0.00033453,60]
[328113225,1716874245167,-2712.36498012,0.00033453,60]
[328113228,1716874245192,-8432.95043861,0.00033453,60]
[328113231,1716874245206,-6029.49838837,0.00033453,60]
[328113233,1716874245218,-7054.43033884,0.00033453,60]
[328113235,1716874245231,-522.85720027,0.00033453,60]
[328113239,1716874249111,-427.44,0.00033443,10]
[328113240,1716874249122,-155.0,0.00033452,4]
[328113241,1716874249132,-47.75475934,0.00033453,60]
[328113242,1716874249144,-13609.72014234,0.00033453,60]
[328113243,1716874249157,-28944.85528841,0.00033453,60]
[328113244,1716874249169,-66095.26676568,0.00033453,60]
[328113245,1716874249181,-14994.31883665,0.00033453,60]
[328113246,1716874249193,-3620.68944261,0.00033453,60]
[328113247,1716874249204,-1408.82174182,0.00033453,60]
[328113248,1716874249216,-1948.47479194,0.00033453,60]
[328113249,1716874249228,-585.35274278,0.00033453,60]
[328113250,1716874249239,-515.25,0.00033453,60]
[328113251,1716874249252,-526.995,0.00033453,60]
[328113252,1716874249264,-3192.7418588,0.00033453,60]
[328113253,1716874249276,-744.912,0.00033453,60]
[328113254,1716874425401,81569.48647849,0.00013,2]
[328113255,1716874425429,1927835.35662237,0.00013,2]
[328113264,1716874598586,228784.41714986,0.00013,2]
[328113274,1716874789776,3644.55,0.000181,10]
[328113282,1716874930998,498.89,0.000235,30]
[328113284,1716875173040,1119.0,0.0003,120]
[328113288,1716875251157,-242.14155153,0.0001352,2]
[328113289,1716875313301,150.0,0.00012844,2]
[328113290,1716875313323,150.0,0.00012844,2]
[328113291,1716875313344,150.0,0.00012844,2]
[328113292,1716875313364,150.0,0.00012844,2]
[328113293,1716875313384,150.0,0.00012844,2]
[328113294,1716875313409,150.0,0.00012844,2]
[328113295,1716875313430,56.57769128,0.00012844,2]
[328113296,1716875317643,2550.07792439,0.0001014,2]
[328113297,1716875329332,150.0,0.00012844,2]
[328113298,1716875329392,150.0,0.00012844,2]
[328113299,1716875329416,150.0,0.00012844,2]
[328113300,1716875329437,150.0,0.00012844,2]
[328113301,1716875329458,150.0,0.00012844,2]
[328113302,1716875329483,150.0,0.00012844,2]
[328113303,1716875329504,56.57769128,0.00012844,2]
[328113304,1716875331642,93.42230872,0.0001014,2]
[328113305,1716875331663,83.23057275,0.0001014,2]
[328113307,1716875355306,150.0,9.633e-05,2]
[328113308,1716875355327,243.02405551,9.633e-05,2]
[328113309,1716875358126,155.0,0.0001014,2]
[328113310,1716875358901,1361.43772127,0.0001014,2]
[328113311,1716875370724,150.0,0.0001014,2]
[328113312,1716875370746,1210.90973049,0.0001014,2]
[328113313,1716875374137,155.0,0.0001014,2]
[328113314,1716875394135,150.0,0.0001014,2]
[328113315,1716875394171,5.0,0.0001014,2]
[328113330,1716875432585,-474.98,0.00013499,2]
[328113331,1716875432596,-824.44409849,0.00013499,2]
[328113332,1716875432606,-2003.2277311,0.00013499,2]
[328113333,1716875432615,-536.52210812,0.000135,2]
[328113334,1716875432625,-314.36267157,0.000135,2]
[328113335,1716875432635,-428.81754475,0.00013501,2]
[328113336,1716875432644,-201.19951623,0.00013501,2]
[328113337,1716875432654,-7524.9148836,0.00013501,2]
[328113338,1716875432663,-7087.22750946,0.00013501,2]
[328113339,1716875432672,-327.22308883,0.00013502,2]
[328113340,1716875432682,-843.41914682,0.00013502,2]
[328113341,1716875432692,-1207.43906551,0.00013502,2]
[328113342,1716875432701,-4282.56969523,0.00013502,2]
[328113343,1716875432710,-43355.96648873,0.00013502,2]
[328113344,1716875432721,-155.0,0.00013503,2]
[328113345,1716875432730,-156.32664826,0.00013503,2]
[328113346,1716875432740,-4486.95054232,0.00013503,2]
[328113347,1716875432753,-263.02002558,0.00013503,2]
[328113348,1716875432764,-1791.88599377,0.00013503,2]
[328113349,1716875432772,-2331.50342214,0.00013504,2]
[328113350,1716875432781,-210.53883072,0.00013504,2]
[328113351,1716875432791,-2189.24448954,0.00013504,2]
[328113352,1716875432800,-535.2022881,0.00013505,2]
[328113353,1716875432811,-489.49792713,0.00013505,2]
[328113354,1716875432821,-290.72934597,0.00013513,2]
[328113355,1716875432830,-290.72934597,0.00013513,2]
[328113356,1716875432839,-150.0,0.00013515,2]
[328113357,1716875432848,-909.76281485,0.00013525,2]
[328113358,1716875432858,-4670.8371903,0.00013526,2]
[328113359,1716875432869,-17266.86305336,0.00013526,2]
[328113360,1716875432880,-710.59577829,0.00013526,2]
[328113361,1716875432899,-482.87677638,0.00013526,2]
[328113362,1716875432911,-2445.46881793,0.00013526,2]
[328113363,1716875432926,-150.0,0.00013534,2]
[328113364,1716875432935,-210.0,0.00014867,2]
[328113365,1716875432944,-314.68,0.00015916,2]
[328113366,1716875432955,-203.0,0.00016353,2]
[328113367,1716875432964,-23900.0,0.00017209,2]
[328113368,1716875432973,-154.51,0.00017231,2]
[328113369,1716875432982,-19832.98291017,0.00017256,2]
[328113370,1716875432993,-250.0,0.00017596,2]
[328113372,1716875433002,-150.0,0.00017693,2]
[328113374,1716875433011,-295.43,0.00018131,2]
[328113375,1716875433020,-295.43,0.00018135,2]
[328113376,1716875433030,-295.43,0.0001814,2]
[328113377,1716875433040,-295.43,0.00018145,2]
[328113378,1716875433050,-295.43,0.0001815,2]
[328113379,1716875433061,-295.43,0.00018154,2]
[328113380,1716875433071,-295.43,0.00018159,2]
[328113381,1716875433080,-295.43,0.00018164,2]
[328113382,1716875433090,-295.43,0.00018169,2]
[328113383,1716875433099,-295.43,0.00018173,2]
[328113384,1716875433109,-295.43,0.00018178,2]
[328113385,1716875433118,-314.68,0.0001818,2]
[328113386,1716875433127,-295.43,0.00018183,2]
[328113387,1716875433136,-295.43,0.00018188,2]
[328113388,1716875433145,-295.43,0.00018193,2]
[328113389,1716875433156,-295.43,0.00018197,2]
[328113390,1716875433166,-295.43,0.00018202,2]
[328113391,1716875433175,-295.43,0.00018207,2]
[328113392,1716875433184,-295.43,0.00018212,2]
[328113393,1716875433193,-295.43,0.00018216,2]
[328113394,1716875433203,-295.43,0.00018221,2]
[328113395,1716875433212,-2372.9,0.00018373,2]
[328113396,1716875433222,-7760.50696957,0.000192,2]
[328113397,1716875433231,-160.0,0.00019206,2]
[328113398,1716875433240,-811.4811688,0.0002,2]
[328113399,1716875433249,-291.42228521,0.0002,2]
[328113400,1716875433259,-3439.78804131,0.0002,2]
[328113401,1716875433268,-314.68,0.00020444,2]
[328113402,1716875433276,-2372.9,0.00021113,2]
[328113403,1716875433285,-314.68,0.00022708,2]
[328113404,1716875433294,-150.0,0.000233,2]
[328113405,1716875433304,-157.26194996,0.0002349,2]
[328113406,1716875433312,-290.27003908,0.00023499,2]
[328113407,1716875433321,-348.03127362,0.000235,2]
[328113408,1716875433330,-155.18869253,0.000235,2]
[328113409,1716875433339,-92217.05880597,0.000235,2]
[328113410,1716875433351,-897.76498644,0.000235,2]
[328113411,1716875433369,-484.28691844,0.000235,2]
[328113423,1716875438553,-167.61,0.000175,2]
[328113424,1716875438563,-4023.24913662,0.000235,2]
[328113425,1716875438594,-418.02892662,0.000235,2]
[328113426,1716875438605,-1832.16000007,0.000235,2]
[328113427,1716875438616,-4667.96338491,0.000235,2]
[328113428,1716875438628,-326.6444601,0.000235,2]
[328113429,1716875438730,-21144.08965766,0.000235,2]
[328113430,1716875438741,-882.479,0.000235,2]
[328113435,1716875441409,-678.91377,0.000235,2]
[328113436,1716875441422,-365865.13009894,0.000235,2]
[328113437,1716875441432,-2627.0,0.000237,3]
[328113438,1716875441442,-159.86649368,0.00023753,2]
[328113439,1716875441452,-2372.9,0.00023853,2]
[328113440,1716875441462,-512.69676818,0.00024,3]
[328113441,1716875441471,-314.68,0.00024972,2]
[328113442,1716875441481,-3907.74337134,0.000266,7]
[328113443,1716875441491,-15822.79548727,0.000268,2]
[328113444,1716875441500,-314.68,0.00027236,2]
[328113445,1716875441511,-243.37243076,0.0002739,2]
[328113446,1716875441520,-500.0,0.00027622,2]
[328113447,1716875441531,-1249.46,0.00028153,2]
[328113448,1716875441540,-280.62,0.00028435,10]
[328113449,1716875441550,-309.43,0.00028435,10]
[328113450,1716875441559,-257.86,0.00028435,10]
[328113451,1716875441569,-8145.93,0.00028445,61]
[328113452,1716875441579,-153.04,0.0002899,2]
[328113453,1716875441589,-250.0,0.00029436,2]
[328113454,1716875441599,-234.55,0.00029492,2]
[328113455,1716875441608,-314.68,0.000295,2]
[328113456,1716875441618,-200.24336257,0.0002985,2]
[328113457,1716875441627,-154.82,0.00029898,2]
[328113458,1716875441637,-4000.0,0.000299,10]
[328113459,1716875441647,-23486.58091414,0.0003,4]
[328113460,1716875441656,-250.30531358,0.0003,2]
[328113461,1716875441666,-500.0,0.00030136,6]
[328113462,1716875441675,-468.5,0.00030136,6]
[328113463,1716875441684,-500.0,0.00030136,6]
[328113464,1716875441693,-500.0,0.00030136,6]
[328113465,1716875441703,-154.82,0.00030158,2]
[328113466,1716875441713,-154.82,0.00030417,2]
[328113467,1716875441722,-640.78,0.00030466,2]
[328113468,1716875441731,-640.78,0.00030474,2]
[328113469,1716875441740,-640.78,0.00030482,2]
[328113470,1716875441749,-640.78,0.0003049,2]
[328113471,1716875441759,-640.78,0.00030498,2]
[328113472,1716875441768,-640.78,0.00030506,2]
[328113473,1716875441778,-640.78,0.00030514,2]
[328113474,1716875441787,-640.78,0.00030522,2]
[328113475,1716875441797,-640.78,0.0003053,2]
[328113476,1716875441806,-640.78,0.00030539,2]
[328113477,1716875441815,-640.78,0.00030547,2]
[328113478,1716875441825,-640.78,0.00030555,2]
[328113479,1716875441834,-640.78,0.00030563,2]
[328113480,1716875441844,-640.78,0.00030571,2]
[328113481,1716875441853,-640.78,0.00030579,2]
[328113482,1716875441863,-640.78,0.00030587,2]
[328113483,1716875441873,-640.78,0.00030595,2]
[328113484,1716875441883,-640.78,0.00030603,2]
[328113485,1716875441892,-640.78,0.00030611,2]
[328113486,1716875441902,-640.78,0.00030619,2]
[328113487,1716875441912,-154.82,0.00030677,2]
[328113488,1716875441922,-1000.0,0.00030733,2]
[328113489,1716875441936,-154.82,0.00030937,2]
[328113490,1716875441945,-154.82,0.00031196,2]
[328113491,1716875441955,-440.0,0.00031247,2]
[328113492,1716875441965,-1225.0,0.00031247,2]
[328113493,1716875441974,-180.0,0.00031247,2]
[328113494,1716875441984,-154.82,0.00031456,2]
[328113495,1716875441994,-314.68,0.00031764,2]
[328113496,1716875442006,-153.4211695,0.00031894,7]
[328113497,1716875442019,-167.08,0.00031981,2]
[328113498,1716875442029,-4000.0,0.000325,14]
[328113499,1716875442039,-200.0,0.00032729,120]
[328113500,1716875442049,-1008.14,0.000329,2]
[328113501,1716875442058,-313.2,0.000329,2]
[328113502,1716875442067,-2000.0,0.000329,2]
[328113503,1716875442077,-2000.0,0.00032986,30]
[328113504,1716875442087,-593.08015627,0.00033041,6]
[328113505,1716875442097,-6750.4434,0.00033042,2]
[328113506,1716875442107,-8010.98610267,0.00033108,2]
[328113507,1716875442118,-203.89289203,0.00033118,3]
[328113508,1716875442127,-332.68225,0.0003312,2]
[328113509,1716875442137,-153.22,0.00033132,2]
[328113510,1716875442147,-500.0,0.00033141,6]
[328113511,1716875442158,-500.0,0.00033141,6]
[328113512,1716875442168,-1130.44,0.00033141,6]
[328113513,1716875442178,-590.24,0.00033141,6]
[328113514,1716875442187,-500.0,0.00033141,6]
[328113515,1716875442197,-145994.7435,0.00033142,2]
[328113516,1716875442207,-1000.0,0.00033142,2]
[328113517,1716875442218,-500.0,0.00033184,10]
[328113518,1716875442228,-11617.85254215,0.000332,2]
[328113519,1716875442238,-500.0,0.00033241,6]
[328113520,1716875442248,-500.0,0.00033241,6]
[328113521,1716875442258,-342.92015093,0.00033241,6]
[328113522,1716875442268,-1130.44,0.00033241,6]
[328113523,1716875442277,-150.56,0.00033241,6]
[328113524,1716875442288,-20233.27559152,0.00033242,4]
[328113525,1716875442298,-198.3990252,0.00033242,4]
[328113526,1716875442308,-179.68068244,0.00033242,2]
[328113527,1716875442318,-500.0,0.00033341,6]
[328113528,1716875442327,-2758.13698666,0.00033341,5]
[328113529,1716875442338,-206.4816037,0.00033341,2]
[328113530,1716875442347,-202.36,0.00033341,7]
[328113531,1716875442357,-161.79048032,0.00033341,7]
[328113532,1716875442366,-161.79048032,0.00033341,7]
[328113533,1716875442376,-161.79048032,0.00033341,7]
[328113534,1716875442385,-190.03,0.00033341,7]
[328113535,1716875442395,-151.92533925,0.00033341,7]
[328113536,1716875442405,-151.92533925,0.00033341,7]
[328113537,1716875442415,-151.92533925,0.00033341,7]
[328113538,1716875442425,-184.21914519,0.00033341,7]
[328113539,1716875442436,-154.83173623,0.00033341,7]
[328113540,1716875442446,-154.83173623,0.00033341,7]
[328113541,1716875442455,-500.0,0.00033389,6]
[328113542,1716875442466,-2000.0,0.000334,10]
[328113543,1716875442476,-150.0,0.000334,22]
[328113544,1716875442486,-150.0,0.000334,7]
[328113545,1716875442496,-390.67901147,0.00033421,4]
[328113546,1716875442505,-155.0,0.00033422,4]
[328113547,1716875442515,-500.0,0.00033429,6]
[328113548,1716875442525,-153.22,0.00033431,2]
[328113549,1716875442535,-153.22,0.00033431,2]
[328113550,1716875442544,-153.22,0.00033431,2]
[328113551,1716875442554,-153.22,0.00033431,2]
[328113552,1716875442564,-153.22,0.00033431,2]
[328113553,1716875442573,-153.22,0.00033431,2]
[328113554,1716875442583,-153.22,0.00033431,2]
[328113555,1716875442593,-153.22,0.00033431,2]
[328113556,1716875442603,-153.22,0.00033431,2]
[328113557,1716875442612,-153.22,0.00033431,2]
[328113558,1716875442622,-153.22,0.00033431,2]
[328113559,1716875442632,-153.22,0.00033431,2]
[328113560,1716875442642,-153.22,0.00033431,2]
[328113561,1716875442652,-153.22,0.00033431,2]
[328113562,1716875442662,-153.22,0.00033431,2]
[328113563,1716875442672,-153.22,0.00033431,2]
[328113564,1716875442681,-153.22,0.00033431,2]
[328113565,1716875442691,-1246.26126998,0.00033437,4]
[328113566,1716875442701,-686.97496708,0.00033437,4]
[328113567,1716875442710,-322.89640249,0.00033437,4]
[328113568,1716875442719,-880.17207576,0.00033437,4]
[328113569,1716875442729,-523.82451147,0.00033437,4]
[328113570,1716875442738,-155.18327346,0.00033437,4]
[328113571,1716875442748,-5597.7335838,0.00033438,11]
[328113572,1716875442757,-1130.44,0.00033438,6]
[328113573,1716875442767,-1130.44,0.00033438,6]
[328113574,1716875442777,-1130.44,0.00033438,6]
[328113575,1716875442786,-1130.44,0.00033438,6]
[328113576,1716875442796,-1130.44,0.00033438,6]
[328113577,1716875442806,-1130.44,0.00033438,6]
[328113578,1716875442816,-1130.44,0.00033438,6]
[328113579,1716875442826,-1130.44,0.00033438,6]
[328113580,1716875442836,-1130.44,0.00033438,6]
[328113582,1716875442846,-1130.44,0.00033438,6]
[328113583,1716875443066,-1130.44,0.00033438,6]
[328113584,1716875443077,-1130.44,0.00033438,6]